Cogmind - Beta 16.1 @@@ ROGUE MODE // 2026.03.06 @ 22:18:51 Player: souux Result: Destroyed by LF-027(R) with Subdweller Beam Cannon Performance ------------- Evolutions (0) 0 Regions Visited (2) 400 Robots Destroyed (29) 145 Value Destroyed (641) 641 Prototype IDs (13) 260 Alien Tech Used (0) 0 Bonus (0) 0 TOTAL SCORE: 1446 Bonus ------- None Cogmind --------- Core Integrity 0/250 Matter 300/300 Energy 100/100 System Corruption 0% Temperature Cool (9) Movement Core (450) Ox8 Location -10/Subcaves Parts ------- > --- POWER (1) -------- (None) > --- PROPULSION (2) --- Aluminum Leg > --- UTILITY (2) ------ Large Storage Unit > --- WEAPON (2) ------- Beam Cannon Subdweller Machine Gun > --- INVENTORY (15) --- Light Ion Engine Subdweller Power Source Aluminum Leg Subdweller Monowheel Seismic Detector Hacking Suite Rainbow Chip Subdweller Machine Gun 1B-0RG's Assimilator Mining Claw Peak State ------------ > --- POWER ------------ Light Nuclear Core > --- PROPULSION ------- Light Treads Aluminum Leg > --- UTILITY ---------- Large Storage Unit Light Armor Plating > --- WEAPON ----------- Subdweller Machine Gun Mining Claw > --- INVENTORY -------- Ion Engine Light Ion Engine Aluminum Leg Wheel Seismic Detector Hacking Suite Rainbow Chip Beam Cannon 1B-0RG's Assimilator [Rating: 18] Favorites ----------- Power Light Nuclear Core Engine Ion Engine Power Core Light Nuclear Core Propulsion Wheel Treads Light Treads Leg Aluminum Leg Wheel Wheel Utility Large Storage Unit Device Heat Sink Storage Large Storage Unit Protection Light Armor Plating Weapon Particle Gun Energy Gun Particle Gun Energy Cannon Beam Cannon Ballistic Gun Light Assault Rifle Slashing Weapon Mining Claw Build | -11 -10 -10 ------- Run | Yrd Mat Sub Slots Evolved . | . . . Power . | . . . Propulsion . | . . . Utility . | . . . Weapon . | . . . Parts Attached 24 | 8 14 2 Power 4 | 1 3 . Engine 3 | 1 2 . Core 1 | . 1 . Reactor . | . . . Propulsion 6 | 2 3 1 Treads 2 | . 2 . Leg 1 | . . 1 Wheel 3 | 2 1 . Hover . | . . . Flight . | . . . Utility 7 | 2 5 . Device 3 | 1 2 . Storage 3 | 1 2 . Processor . | . . . Hackware . | . . . Protection 1 | . 1 . Artifact . | . . . Weapon 7 | 3 3 1 Energy Gun 3 | 2 1 . Energy Cannon 1 | . 1 . Ballistic Gun 2 | 1 . 1 Ballistic Cannon . | . . . Launcher . | . . . Special Weapon . | . . . Impact Weapon . | . . . Slashing Weapon 1 | . 1 . Piercing Weapon . | . . . Special Melee Weapon . | . . . Unidentified Prototypes . | . . . Parts Lost 8 | . 2 6 Power 1 | . . 1 Propulsion 3 | . 1 2 Utility 2 | . . 2 Weapon 2 | . 1 1 Highest Loss Streak 3 | . 1 3 To Critical Strikes . | . . . Average Backups 9 | 5 9 9 Power 1 | . 1 1 Propulsion 3 | 3 3 2 Utility 2 | . 2 2 Weapon 1 | . 1 1 Tool/Special . | . . . Unused Backups 8 | . . 8 Power 2 | . . 2 Propulsion 2 | . . 2 Utility 2 | . . 2 Weapon 1 | . . 1 Tool/Special 1 | . . 1 Average Slot Usage (%) 99 | . 100 96 Engine 6 | . 4 10 Core 7 | . 9 2 Treads 10 | . 8 15 Leg 3 | . . 11 Wheel 14 | . 19 . Device 9 | . 13 . Storage 14 | . 14 14 Protection 3 | . . 11 Energy Gun 11 | . 15 1 Energy Cannon 3 | . . 11 Ballistic Gun 10 | . 9 11 Slashing Weapon 2 | . 2 2 Peak Build Rating 18 | 7 11 18 Average Rating 11 | 5 10 15 On Entrance 6 | . 7 11 Avg Prop Armor Cover (%) 11 | . 13 6 Naked Turns . | . . . Heaviest Build 35 | 14 32 35 Greatest Support 40 | 20 40 40 Greatest Overweight (x) 8 | . 3 8 Average Overweight (x) 1 | . 1 . Largest Inventory Capacity 15 | 8 15 15 Average Capacity 13 | 7 13 15 Most Carried 14 | 7 10 14 Average Carried 9 | 5 9 12 Final Capacity 15 | 8 15 15 Final Carried 14 | 7 9 14 Class Distribution -------------------- 100% | Mutant Dominant Class ---------------- Mutant | -10/Materials Mutant | -10/Subcaves Resources | -11 -10 -10 ----------- Run | Yrd Mat Sub Matter Collected 598 | 316 206 76 Remotely . | . . . Salvage Created 969 | 165 696 108 Parts 58 | 12 37 9 Haulers Intercepted 2 | . 2 . Recyclers Shooed . | . . . Parts Field Recycled . | . . . Retrieved Matter . | . . . Parts Self-Destructed 4 | . . 4 Prevented . | . . . Parts Restored . | . . . Kills | -11 -10 -10 ------- Run | Yrd Mat Sub Combat Hostiles Destroyed 19 | . 16 3 Guns 16 | . 16 . Cannons 3 | . . 3 Classes Destroyed 8 | 2 5 1 Tunneler 3 | 3 . . Hauler 2 | . 2 . Recycler 1 | 1 . . Operator 1 | . 1 . Watcher 3 | . 3 . Swarmer 6 | . 6 . Grunt 10 | . 10 . Subdweller 3 | . . 3 Best Kill Streak 4 | 3 4 2 Combat Bots Only 3 | . 3 2 Max Kills in Single Turn 1 | 1 1 1 Gunslinging . | . . . Exploded . | . . . Melee . | . . . Uniques/NPCs Destroyed . | . . . Combat | -11 -10 -10 -------- Run | Yrd Mat Sub Hostile Shots Fired 111 | . 63 48 Missed 33 | . 18 15 Hits 78 | . 45 33 Projectile 78 | . 45 33 AOE 4 | . . 4 Damage Taken 1440 | . 544 896 Core 265 | . 74 191 Absorbed by Shields . | . . . Core Remaining (%) 100 | 100 . . Volleys Fired 115 | 36 67 12 Largest 2 | 2 2 2 Hottest 90 | 60 85 90 Shots Fired 188 | 39 129 20 Gun 176 | 39 129 8 Cannon 12 | . . 12 Launcher . | . . . Special . | . . . Kinetic 91 | 36 47 8 Thermal 62 | . 50 12 Explosive . | . . . Electromagnetic 35 | 3 32 . Robot Hit Streak 18 | 9 18 16 Robot Miss Streak 3 | 2 3 1 Penetration Max . | . . . Secondary Targets . | . . . Shots Hit Robots 123 | 30 75 18 Core Hits 51 | 9 36 6 Critical Kills . | . . . Critical Parts Destroyed . | . . . Critical Strikes . | . . . Melee Attacks 12 | . 11 1 Impact . | . . . Slashing 12 | . 11 1 Piercing . | . . . Sneak Attacks . | . . . Combat Hostiles . | . . . Follow-up Attacks . | . . . Damage Inflicted 1588 | 242 986 360 Guns 1373 | 242 974 157 Cannons 203 | . . 203 Explosions . | . . . Melee . | . . . Ramming 12 | . 12 . Kinetic 524 | 218 149 157 Thermal 754 | . 551 203 Explosive . | . . . Electromagnetic 298 | 24 274 . Impact . | . . . Slashing . | . . . Piercing . | . . . Highest Corruption . | . . . Average Corruption . | . . . Corruption Purged . | . . . Corruption Blocked . | . . . Overload Shots . | . . . Overflow Damage . | . . . Projectiles . | . . . Explosions . | . . . Melee . | . . . Knockbacks 1 | . 1 . Impact 1 | . 1 . Kinetic . | . . . Secondary . | . . . Self-Inflicted Damage 6 | . 6 . Shots . | . . . Rammed 2 | . 2 . Targets Rammed 2 | . 2 . Kicked . | . . . Crushed . | . . . Highest Temperature 474 | 20 474 . Average Temperature 120 | 15 123 . Received Heat Transfer 315 | . 252 63 Effects 3 | . 3 . Shutdowns 1 | . 1 . Energy Bleed 1 | . 1 . Interference 1 | . 1 . Siege Activations . | . . . Martial Activations . | . . . Shielding Activations . | . . . Robots Disrupted . | . . . Combat Hostiles . | . . . Robots Corrupted . | . . . Combat Hostiles . | . . . Parts Fried . | . . . Impact Corruptions . | . . . Robots Melted . | . . . Combat Hostiles . | . . . Parts Melted 2 | . 2 . Heat Transferred 1739 | . 1332 407 Parts Sabotaged . | . . . Parts Stolen . | . . . Parts Stripped . | . . . Power Chain Reactions . | . . . Alert | -11 -10 -10 ------- Run | Yrd Mat Sub Maximum Alert Level 1 | . 1 . Low Security (%) 79 | 100 77 . Level 1 20 | . 22 . Level 2 . | . . . Level 3 . | . . . Level 4 . | . . . Level 5 . | . . . High Security . | . . . Max Security . | . . . Peak Influence 267 | 10 267 . Initial . | . . . Average 119 | 1 126 . Influence Increases 650 | 20 630 . Destroy 0b10 Robot/C 320 | . 320 . Destroy 0b10 Robot/NC 50 | 20 30 . Destroy Leader 80 | . 80 . Successful Hack 30 | . 30 . Select Force Hacks 60 | . 60 . Destroy Structure 5 | . 5 . Lose Combat Pursuer 105 | . 105 . Influence Decreases 650 | 20 577 53 Entered New Map 26 | . . 26 Time Decay 594 | 20 557 17 Lost Part 30 | . 20 10 Squads Dispatched 4 | . 4 . Investigation 4 | . 4 . Extermination . | . . . Reinforcement . | . . . Assault . | . . . Garrison . | . . . Intercept . | . . . Searches Triggered . | . . . Construction Impeded . | . . . Haulers Reinforced . | . . . Active Scanning Responses . | . . . Cargo Convoy Interrupts . | . . . Stealth | -11 -10 -10 --------- Run | Yrd Mat Sub Distress Signals 2 | . 2 . Communications Jammed . | . . . Distress Signals . | . . . Times Spotted 42 | . 36 6 Peak Tracking Total 4 | . 4 2 Tactical Retreats 4 | . 4 . Traps | -11 -10 -10 ------- Run | Yrd Mat Sub Traps Triggered 3 | . 3 . Indirectly . | . . . Trap Hack Attempts . | . . . Triggered . | . . . Disarmed . | . . . Reprogrammed 6 | . 6 . Reused . | . . . Traps Extracted . | . . . Installed . | . . . Triggered . | . . . Machines | -11 -10 -10 ---------- Run | Yrd Mat Sub Machines Disabled 1 | . . 1 Max in Single Turn 1 | . . 1 Machines Repaired . | . . . Machines Dismantled . | . . . Machines Sabotaged . | . . . Overloaded Fab Kills . | . . . Hacking | -11 -10 -10 --------- Run | Yrd Mat Sub Machines Accessed 11 | . 10 1 Terminals 8 | . 8 . Fabricators . | . . . Repair Stations . | . . . Recycling Units 2 | . 2 . Scanalyzers . | . . . Garrison Access . | . . . Total Hacks 28 | . 27 1 Successful 18 | . 17 1 Failed 10 | . 10 . Catastrophic . | . . . Database Lockouts . | . . . Manual 13 | . 13 . Terminals 25 | . 25 . Fabricators . | . . . Repair Stations . | . . . Recycling Units 2 | . 2 . Scanalyzers . | . . . Garrison Access . | . . . Terminal Hacks 8 | . 7 1 Robot Analysis 1 | . 1 . Locate Traps 1 | . 1 . Reprogram Traps 1 | . 1 . Recall Reinforcements 1 | . 1 . Hauler Manifests 2 | . 2 . Zone Layout 1 | . 1 . Proto ID Catalog 1 | . . 1 Fabricator Hacks . | . . . Repair Station Hacks . | . . . Recycling Unit Hacks . | . . . Scanalyzer . | . . . Garrison Access Hacks . | . . . Unauthorized Hacks 10 | . 10 . Terminals 8 | . 8 . Botnet 3 | . 3 . Skim 5 | . 5 . Fabricators . | . . . Repair Stations . | . . . Recycling Units 2 | . 2 . Tunnel 2 | . 2 . Scanalyzers . | . . . Garrison Access . | . . . Data Cores Recovered 1 | . 1 . Used 1 | . 1 . Hacking Detections 8 | . 8 . Full Trace Events . | . . . Feedback Events . | . . . Feedback Blocked . | . . . Robot Schematics Acquired . | . . . Robots Built . | . . . Authchips . | . . . Time . | . . . Total Robot Build Rating . | . . . Part Schematics Acquired . | . . . Parts Built . | . . . Authchips . | . . . Time . | . . . Total Part Build Rating . | . . . Part Studies Acquired . | . . . Parts Repaired . | . . . Time . | . . . Parts Recycled . | . . . Recycled Matter . | . . . Retrieved Matter . | . . . Retrieved Components . | . . . Parts Scanalyzed . | . . . Part Schematics Acquired . | . . . Parts Damaged . | . . . Bothacking | -11 -10 -10 ------------ Run | Yrd Mat Sub Used RIF Installer . | . . . Robots Hacked . | . . . Non-combat . | . . . Combat . | . . . Robot Hacks Applied . | . . . Relay Couplers Released . | . . . Fabnet Peak Effective % . | . . . Robots Rewired . | . . . Allies Hacked . | . . . Hacks Repelled . | . . . Allies | -11 -10 -10 -------- Run | Yrd Mat Sub Total Allies . | . . . Largest Group . | . . . Highest-Rated Group . | . . . Highest-Rated Ally . | . . . Total Orders . | . . . Ally Attacks . | . . . Total Damage . | . . . Kills . | . . . Allies Corrupted . | . . . Allies Melted . | . . . Intel | -11 -10 -10 ------- Run | Yrd Mat Sub Active Infowar (turns) 822 | 24 798 . Seismic 822 | 24 798 . Robot Analysis Total 1 | . 1 . Derelict Logs Recovered . | . . . Drone Launches . | . . . Drone Recoveries . | . . . Exploration | -11 -10 -10 ------------- Run | Yrd Mat Sub Turns Passed 3186 | 137 2242 807 Spaces Moved 2071 | 63 1673 335 Core 4 | 1 . 3 Treads 363 | . 31 332 Legs . | . . . Wheels 1704 | 62 1642 . Hover . | . . . Flight . | . . . Fastest Speed 50 | 50 80 160 Average Speed 121 | 79 102 226 Slowest Speed 450 | 80 160 450 Overloaded Moves . | . . . Propulsion Burnouts . | . . . Robots Hopped . | . . . Potential Cave-ins . | . . . Cave-ins Triggered . | . . . Exploration Rate (%) 44 | 3 99 31 Regions Visited 2 Branch Regions 1 Pre-discovered Areas 3 | . 3 . Known Exits Taken . | . . . Unknown Exits Taken 2 | 1 1 . Scrap Searched . | . . . Spaces Dug 5 | . 5 . Terrain Destroyed 5 | . 5 . Melee 5 | . 5 . Projectile . | . . . AOE . | . . . Terrain Rammed . | . . . Walls Destroyed . | . . . Machines Disabled . | . . . Actions | -11 -10 -10 --------- Run | Yrd Mat Sub Total 2538 | 113 2064 361 Wait 282 | . 282 . Move 2069 | 62 1672 335 Hop . | . . . Pick Up 17 | 7 5 5 Fast Attach 9 | 7 1 1 Attach 4 | . 2 2 Detach . | . . . Swap 18 | 1 14 3 Drop 10 | . 8 2 Fire 115 | 36 67 12 Melee 12 | . 11 1 Ram 2 | . 2 . Kick . | . . . Crush . | . . . Escape Stasis . | . . . Rewire . | . . . Trap . | . . . Miscellaneous . | . . . Route ------- -11/Scrapyard -10/Materials (discovered 5 exits: [*Mat x3] / [*Min] / *Sub) -10/Subcaves (discovered 2 exits: *Mat x2) History --------- Turn | Location | Event 10 | -11/Scrapyard | Discovered new exit (range 15) 138 | -11/Scrapyard | Entered Materials 160 | -10/Materials | Discovered new exit (range 6) 210 | -10/Materials | Discovered new exit (range 13) 300 | -10/Materials | Build established: Mutant 588 | -10/Materials | Discovered new exit (range 3) 684 | -10/Materials | Learned 2 Mines zone layouts 743 | -10/Materials | Learned Storage stockpile data 794 | -10/Materials | Learned Storage emergency access door positions 815 | -10/Materials | Discovered new exit (range 16) 833 | -10/Materials | Learned location of 1 exit from Storage 862 | -10/Materials | Learned 4 Subcaves zone layouts 883 | -10/Materials | Loaded intel: 2 recycling unit locations 896 | -10/Materials | Learned location of 1 exit from Storage 919 | -10/Materials | Learned Storage garrison access intel 951 | -10/Materials | Loaded intel: 10 trap records 1050 | -10/Materials | Learned location of Subcaves (-10) 2297 | -10/Materials | Discovered new exit (range 6) 2380 | -10/Materials | Entered Subcaves 2381 | -10/Subcaves | Identified exit to Materials 2485 | -10/Subcaves | Visited 4L-MR0's lab 2485 | -10/Subcaves | Core integrity fell below 50% 2532 | -10/Subcaves | Found Prototype Special Melee Weapon 2542 | -10/Subcaves | Found Rainbow Chip 3167 | -10/Subcaves | Core integrity fell below 20% 3176 | -10/Subcaves | Shifting Twisted Machinery released Mak. Hammer 3184 | -10/Subcaves | Shifting Twisted Machinery released Barrage Gun 3187 | -10/Subcaves | Destroyed by LF-027(R) with Subdweller Beam Cannon Last Messages --------------- 02576_ Acquired 10 matter. 02584_ Acquired Sub. Power Source. 02595_ Subatomizers dissect the Sub. Optics, destroying it. 02683_ ZP-2AT(R) destroyed. 02692_ IP-S2Z(R) affixes Scrap Shield Fragment to Scrap Shield. 02698_ IP-S2Z(R) destroyed. 02704_ Acquired 32 matter. 02709_ Acquired Sub. Machine Gun. 02710_ Dropped Wheel. 02710_ Acquired 8 matter. 02717_ Acquired Sub. Monowheel. 03163_ Lgt. Armor Plating destroyed. 03174_ Lgt. Treads destroyed. 03174_ Ion Engine destroyed. Mak. Hammer falls loose from the Twisted Machinery. Barrage Gun falls loose from the Twisted Machinery. Map ----- +----------------------------------------------------+ | ????????????????# ## #??###???# #?# | | ???????????????## ## #????????#####?## | | ???????????????# ### #??????????????? | | ??????????????## ##?# #??????????????? | | ??????????????# #??# #??????????????? | | ??????????????# #??# ##??????????????? | | ??????????????## #??## #???????????????? | | ???????????????# ##???# #???????????????? | | ??????????????## ##??? #???????????????? | | ??????????????# #??? ####???????????????? | | ??????????????# #??? ???????????????????? | | ??????????????# ##??? ???????????????????? | | ??????????????### ####?##???????????????????? | | ????????????????# # ## #???????????????????? | | ???????????????## #??###???????????????? | | ???????????????# ####"###?????????????? | | ???????????????##### """##"""##????????????? | | ???????????????????## " " "" ""####?????????? | | ??????????????????#?#### # """"#?????????? | | ?????????????????## ##### """#?????????? | | ????????????????## [" ???## ## "##?????????? | | ???????????????##"" """???## #??#??????????? | | ???????????????#"" """#???# ##?????????????? | | ???????????????#" ""#???# " ##????????????? | | ??????????????##""""""##??#" #????????????? | | ??????????????# "" <@R#### #????????????? | | ??????????????##"" "/R ;# " ##???????????? | | ???????????????# """"" " #???????????? | | ???????????????# """""" " #??????????? | | ???????????????# """"""" #####??????????? | | ?????????????????# " ### #??????????????? | | ?????????????????## ###?# ##??????????????? | | ?????????????????# ????# #???????????????? | | ?????????????????##""????## #???????????????? | | ??????????????????????????# ???????????????? | | ??????????????????????????# ??????????????? | | ??????????????????????????## ?????????????? | | ???????????????????????????? ?????????????? | | ???????????????????????????? #????????????? | | ????????????????????????????# ? #????????????? | | ????????????????????????????????#????????????? | | ?????????????????????????????????????????????? | | ?????????????????????????????????????????????? | | ?????????????????????????????????????????????? | | ?????????????????????????????????????????????? | | ?????????????????????????????????????????????? | | ?????????????????????????????????????????????? | | ?????????????????????????????????????????????? | | ?????????????????????????????????????????????? | | ?????????????????????????????????????????????? | +----------------------------------------------------+ Best States ------------- Heat Dissipation 35 Energy Generation 14 Energy Capacity 250 Matter Stores 300 Matter Capacity 300 Sight Range 16 Terrain Scan Density 10 Armor Coverage 150 Evasion (%) 44 Recoil Reduction 2 Item Schematics ----------------- None Robot Schematics ------------------ None Fabricated ------------ Nothing Repaired ---------- Nothing Studied --------- None Alien Tech Used ----------------- None Achievements -------------- None Challenges ------------ None Game ------ Seed NetworkClaymoresInitializer Manual? 0 Play Time 00:33:23 Cumulative 172.7 hours Start 2026.03.06 @ 21:10:12 End 2026.03.06 @ 22:18:51 Sessions 1 Manual Loads 0 Difficulty Rogue Special Mode None Game No. 121 Rogue 121 Adventurer 0 Explorer 0 Win Type - Total 3 Types 3/0/0/0/0/0/0/0/0/0 Lore% 49 Gallery% 51 Achievement% 42 Wizard Run 0 Options --------- Layout 2 ASCII 0 Keyboard 0 Movement Mouse Keybinds 0 Fullscreen 1 Font 24/Smallcaps Map View 50x44 Zoom Use 0% Tactical HUD 1 Map Filters NONE Filters NONE Steam 1 RUN: 791cbae1-4150-4495-aec3-8d05dbfb062a